[Event "*** Titled Tuesday Blitz"]
[Site "Chess.com"]
[Date "2020.04.07"]
[Round "9"]
[White "manmanlai1"]
[Black "thedjoker98"]
[Result "1-0"]
[WhiteElo "2335"]
[BlackElo "2456"]
[TimeControl "180+1"]
[EndTime "14:48:03 PDT"]
[Termination "manmanlai1 won by resignation"]

1. e4 {[%clk 0:03:00.9]} 1... e5 {[%clk 0:02:56.8]} 2. Nf3 {[%clk 0:03:00.8]}
2... Nc6 {[%clk 0:02:57.1]} 3. Bc4 {[%clk 0:03:01.2]} 3... Bc5 {[%clk
0:02:56.8]} 4. b4 {[%clk 0:03:00.7]} 4... Bxb4 {[%clk 0:02:56.6]} 5. c3 {[%clk
0:03:00.9]} 5... Ba5 {[%clk 0:02:57.1]} 6. d4 {[%clk 0:03:00.5]} 6... d6 {[%clk
0:02:57.2]} 7. Qb3 {[%clk 0:02:59.2]} 7... Qe7 {[%clk 0:02:55.7]} 8. d5 {[%clk
0:02:45.2]} 8... Nd4 {[%clk 0:02:54.9]} 9. Nxd4 {[%clk 0:02:31.8]} 9... exd4
{[%clk 0:02:55.8]} 10. O-O {[%clk 0:02:29.7]} 10... Bb6 {[%clk 0:02:51.9]} 11.
cxd4 {[%clk 0:02:19.5]} 11... Bxd4 {[%clk 0:02:51.1]} 12. Bb2 {[%clk 0:02:16.9]}
12... Bxb2 {[%clk 0:02:45.1]} 13. Qxb2 {[%clk 0:02:16.6]} 13... Qe5 {[%clk
0:02:46]} 14. Nc3 {[%clk 0:02:15.7]} 14... Nf6 {[%clk 0:02:44.2]} 15. Kh1 {[%clk
0:02:16]} 15... O-O {[%clk 0:02:41.3]} 16. Bd3 {[%clk 0:02:10.1]} 16... Re8
{[%clk 0:02:36]} 17. Qd2 {[%clk 0:02:04.6]} 17... Qd4 {[%clk 0:02:31.5]} 18.
Rad1 {[%clk 0:01:59.4]} 18... c6 {[%clk 0:02:29.8]} 19. dxc6 {[%clk 0:01:53.7]}
19... bxc6 {[%clk 0:02:30.7]} 20. Qc2 {[%clk 0:01:50.5]} 20... Qc5 {[%clk
0:02:14.1]} 21. Qd2 {[%clk 0:01:38.8]} 21... d5 {[%clk 0:02:03.9]} 22. exd5
{[%clk 0:01:36.2]} 22... cxd5 {[%clk 0:02:04.8]} 23. Ne2 {[%clk 0:01:29.6]}
23... Bg4 {[%clk 0:02:00.9]} 24. f3 {[%clk 0:01:28.2]} 24... Be6 {[%clk
0:02:00.7]} 25. Rc1 {[%clk 0:01:25]} 25... Qd6 {[%clk 0:01:56.8]} 26. Nd4 {[%clk
0:01:23.7]} 26... Rac8 {[%clk 0:01:55.9]} 27. Rxc8 {[%clk 0:01:22.2]} 27... Rxc8
{[%clk 0:01:55.4]} 28. Rc1 {[%clk 0:01:21.3]} 28... Rxc1+ {[%clk 0:01:53.7]} 29.
Qxc1 {[%clk 0:01:22.2]} 29... g6 {[%clk 0:01:54.6]} 30. Qc3 {[%clk 0:01:17.9]}
30... Kg7 {[%clk 0:01:51]} 31. Kg1 {[%clk 0:01:15]} 31... Qb6 {[%clk 0:01:47.9]}
32. Kh1 {[%clk 0:01:11.3]} 32... h6 {[%clk 0:01:48]} 33. a3 {[%clk 0:01:03.6]}
33... Bd7 {[%clk 0:01:33.9]} 34. h3 {[%clk 0:01:01.9]} 34... Qb8 {[%clk
0:01:32.4]} 35. Ne2 {[%clk 0:00:54.5]} 35... Qc8 {[%clk 0:01:30.5]} 36. Qd4
{[%clk 0:00:52.1]} 36... Bxh3 {[%clk 0:01:21.1]} 37. Nf4 {[%clk 0:00:23.2]}
37... Be6 {[%clk 0:01:16.4]} 38. Qe5 {[%clk 0:00:23]} 38... Qd7 {[%clk
0:00:47.7]} 39. Bxg6 {[%clk 0:00:20.5]} 39... fxg6 {[%clk 0:00:42.9]} 40. Nxe6+
{[%clk 0:00:20.3]} 40... Kf7 {[%clk 0:00:43]} 41. Nd4 {[%clk 0:00:19.9]} 41...
Qe7 {[%clk 0:00:41.9]} 42. Qf4 {[%clk 0:00:19.9]} 42... Qxa3 {[%clk 0:00:38.9]}
43. Nc6 {[%clk 0:00:16.2]} 43... g5 {[%clk 0:00:12.8]} 44. Qc7+ {[%clk
0:00:13.2]} 44... Kg6 {[%clk 0:00:12.9]} 45. Ne7+ {[%clk 0:00:13]} 45... Kf7
{[%clk 0:00:08.9]} 46. Nxd5+ {[%clk 0:00:08.2]} 46... Ke6 {[%clk 0:00:08.9]} 47.
Qc6+ {[%clk 0:00:08.3]} 47... Ke5 {[%clk 0:00:08.9]} 48. Nxf6 {[%clk 0:00:07.5]}
48... Qc1+ {[%clk 0:00:05.7]} 49. Qxc1 {[%clk 0:00:06.3]} 1-0

[Event "*** Titled Tuesday Blitz"]
[Site "Chess.com"]
[Date "2020.04.07"]
[Round "9"]
[White "dusanacns"]
[Black "TwentyHoursADay"]
[Result "0-1"]
[WhiteElo "2707"]
[BlackElo "2551"]
[TimeControl "180+1"]
[EndTime "14:48:04 PDT"]
[Termination "TwentyHoursADay won by resignation"]

1. e4 {[%clk 0:03:00.9]} 1... c5 {[%clk 0:03:00]} 2. Nf3 {[%clk 0:03:00.9]} 2...
e6 {[%clk 0:02:58.1]} 3. Nc3 {[%clk 0:02:57.4]} 3... a6 {[%clk 0:02:57.9]} 4. d4
{[%clk 0:02:57.5]} 4... cxd4 {[%clk 0:02:58.1]} 5. Nxd4 {[%clk 0:02:58.4]} 5...
Qc7 {[%clk 0:02:58.6]} 6. Bd3 {[%clk 0:02:54.7]} 6... Nf6 {[%clk 0:02:58.5]} 7.
f4 {[%clk 0:02:51.8]} 7... b5 {[%clk 0:02:57.1]} 8. e5 {[%clk 0:02:48.3]} 8...
b4 {[%clk 0:02:57.2]} 9. Ne4 {[%clk 0:02:13.9]} 9... Nxe4 {[%clk 0:02:57.1]} 10.
Bxe4 {[%clk 0:02:14.8]} 10... Bb7 {[%clk 0:02:57.6]} 11. Qf3 {[%clk 0:02:12.4]}
11... Nc6 {[%clk 0:02:52.5]} 12. Nxc6 {[%clk 0:02:11.8]} 12... Bxc6 {[%clk
0:02:52.1]} 13. Bxc6 {[%clk 0:02:09.4]} 13... Qxc6 {[%clk 0:02:52.3]} 14. Qxc6
{[%clk 0:02:09]} 14... dxc6 {[%clk 0:02:53.2]} 15. Be3 {[%clk 0:02:07.4]} 15...
O-O-O {[%clk 0:02:45.9]} 16. Ke2 {[%clk 0:02:05.6]} 16... Be7 {[%clk 0:02:34.7]}
17. Rac1 {[%clk 0:01:58.5]} 17... Kb7 {[%clk 0:02:26.5]} 18. c3 {[%clk
0:01:58.1]} 18... a5 {[%clk 0:01:59.6]} 19. Rhd1 {[%clk 0:01:55.7]} 19... Rd5
{[%clk 0:01:39.7]} 20. c4 {[%clk 0:01:52.6]} 20... Rxd1 {[%clk 0:01:37.5]} 21.
Rxd1 {[%clk 0:01:53.5]} 21... Rd8 {[%clk 0:01:38.1]} 22. Rg1 {[%clk 0:01:43.8]}
22... c5 {[%clk 0:01:09.5]} 23. g4 {[%clk 0:01:42.2]} 23... Kc6 {[%clk
0:01:04.4]} 24. Rg3 {[%clk 0:01:07.6]} 24... h6 {[%clk 0:00:57.5]} 25. Rg1
{[%clk 0:01:05.5]} 25... Rh8 {[%clk 0:00:53.1]} 26. Kd3 {[%clk 0:00:56.2]} 26...
h5 {[%clk 0:00:52.9]} 27. gxh5 {[%clk 0:00:56.5]} 27... Rxh5 {[%clk 0:00:50.3]}
28. Rxg7 {[%clk 0:00:56.6]} 28... Rxh2 {[%clk 0:00:50.5]} 29. Rxf7 {[%clk
0:00:56.4]} 29... Kd7 {[%clk 0:00:50.5]} 30. f5 {[%clk 0:00:54.7]} 30... Ke8
{[%clk 0:00:39.6]} 31. fxe6 {[%clk 0:00:52.5]} 31... Rxb2 {[%clk 0:00:27.9]} 32.
Rf2 {[%clk 0:00:19.2]} 32... Rxf2 {[%clk 0:00:20]} 33. Bxf2 {[%clk 0:00:20.1]}
33... Kf8 {[%clk 0:00:15.8]} 34. Ke4 {[%clk 0:00:18.7]} 34... a4 {[%clk
0:00:15.3]} 35. Kd3 {[%clk 0:00:16.3]} 35... Kg7 {[%clk 0:00:14.3]} 36. Be3
{[%clk 0:00:12.1]} 36... Kg6 {[%clk 0:00:13.8]} 37. Ke4 {[%clk 0:00:11.3]} 37...
a3 {[%clk 0:00:09.7]} 38. Bc1 {[%clk 0:00:09.6]} 38... Kg7 {[%clk 0:00:07.1]}
39. Bd2 {[%clk 0:00:09]} 39... Kg6 {[%clk 0:00:07.3]} 40. Bc1 {[%clk 0:00:06.6]}
40... Kg7 {[%clk 0:00:07.2]} 41. Kf5 {[%clk 0:00:03.3]} 41... Kf8 {[%clk
0:00:06.9]} 42. Kg6 {[%clk 0:00:03]} 42... Kg8 {[%clk 0:00:07.3]} 43. Bd2 {[%clk
0:00:02.4]} 43... Kf8 {[%clk 0:00:07.2]} 44. Kh7 {[%clk 0:00:01.8]} 44... Bg5
{[%clk 0:00:05.3]} 45. Bxg5 {[%clk 0:00:01.8]} 45... b3 {[%clk 0:00:05.7]} 46.
Kg6 {[%clk 0:00:01.9]} 46... b2 {[%clk 0:00:03.7]} 47. Kf6 {[%clk 0:00:02.8]}
47... b1=Q {[%clk 0:00:03.6]} 48. e7+ {[%clk 0:00:03.7]} 48... Ke8 {[%clk
0:00:04.1]} 49. Ke6 {[%clk 0:00:04.2]} 49... Qxa2 {[%clk 0:00:04.3]} 50. Bf6
{[%clk 0:00:04.5]} 50... Qxc4+ {[%clk 0:00:04]} 51. Kf5 {[%clk 0:00:05.4]} 51...
a2 {[%clk 0:00:04.3]} 0-1

[Event "*** Titled Tuesday Blitz"]
[Site "Chess.com"]
[Date "2020.04.07"]
[Round "9"]
[White "XDPS"]
[Black "severomorskij"]
[Result "1-0"]
[WhiteElo "2734"]
[BlackElo "2841"]
[TimeControl "180+1"]
[EndTime "14:48:05 PDT"]
[Termination "XDPS won on time"]

1. e4 {[%clk 0:03:00.9]} 1... c5 {[%clk 0:02:59.6]} 2. Nf3 {[%clk 0:03:01.3]}
2... Nc6 {[%clk 0:02:59.2]} 3. Bb5 {[%clk 0:02:59.9]} 3... d6 {[%clk 0:02:58.3]}
4. O-O {[%clk 0:02:57.4]} 4... Bd7 {[%clk 0:02:58.1]} 5. Re1 {[%clk 0:02:56.9]}
5... Nf6 {[%clk 0:02:57.4]} 6. c3 {[%clk 0:02:53.4]} 6... a6 {[%clk 0:02:57.1]}
7. Bf1 {[%clk 0:02:53.7]} 7... Bg4 {[%clk 0:02:56.5]} 8. h3 {[%clk 0:02:54.3]}
8... Bxf3 {[%clk 0:02:54.6]} 9. Qxf3 {[%clk 0:02:55.2]} 9... e6 {[%clk
0:02:54.4]} 10. d3 {[%clk 0:02:54.7]} 10... Be7 {[%clk 0:02:54.3]} 11. Bf4
{[%clk 0:02:55.1]} 11... O-O {[%clk 0:02:53.1]} 12. Nd2 {[%clk 0:02:55.5]} 12...
d5 {[%clk 0:02:51.6]} 13. Rad1 {[%clk 0:02:54.9]} 13... b5 {[%clk 0:02:50.8]}
14. Qe2 {[%clk 0:02:47.4]} 14... b4 {[%clk 0:02:28.4]} 15. Nb3 {[%clk
0:02:42.5]} 15... a5 {[%clk 0:02:18.7]} 16. Nc1 {[%clk 0:02:14.8]} 16... a4
{[%clk 0:02:12.2]} 17. a3 {[%clk 0:02:09.8]} 17... bxc3 {[%clk 0:02:03.3]} 18.
bxc3 {[%clk 0:02:08.7]} 18... Qa5 {[%clk 0:01:43]} 19. Qc2 {[%clk 0:02:08.8]}
19... c4 {[%clk 0:01:23.9]} 20. dxc4 {[%clk 0:02:02.4]} 20... dxe4 {[%clk
0:01:21.8]} 21. Bd6 {[%clk 0:01:21.6]} 21... Bxd6 {[%clk 0:01:11]} 22. Rxd6
{[%clk 0:01:22.5]} 22... Qc5 {[%clk 0:01:08.9]} 23. Red1 {[%clk 0:01:22.9]}
23... Ne5 {[%clk 0:00:47.8]} 24. Na2 {[%clk 0:01:19]} 24... e3 {[%clk
0:00:43.7]} 25. R6d4 {[%clk 0:01:04.6]} 25... exf2+ {[%clk 0:00:41.5]} 26. Qxf2
{[%clk 0:01:05.5]} 26... Qxa3 {[%clk 0:00:41.2]} 27. Re1 {[%clk 0:00:56.9]}
27... Qc5 {[%clk 0:00:36.6]} 28. Nb4 {[%clk 0:00:55.5]} 28... Ng6 {[%clk
0:00:29.6]} 29. Rd2 {[%clk 0:00:47.6]} 29... Qxf2+ {[%clk 0:00:29]} 30. Kxf2
{[%clk 0:00:48.5]} 30... Rfc8 {[%clk 0:00:26.2]} 31. Ra2 {[%clk 0:00:35.1]}
31... Nd7 {[%clk 0:00:15.2]} 32. Nc2 {[%clk 0:00:25.4]} 32... Nge5 {[%clk
0:00:14.1]} 33. Ne3 {[%clk 0:00:25.3]} 33... Nc5 {[%clk 0:00:12.9]} 34. Rea1
{[%clk 0:00:23.9]} 34... Rab8 {[%clk 0:00:07.3]} 35. Kg3 {[%clk 0:00:21.3]}
35... g5 {[%clk 0:00:07.2]} 36. Nc2 {[%clk 0:00:17.6]} 36... h6 {[%clk
0:00:06.8]} 37. Nd4 {[%clk 0:00:17.7]} 37... Nb3 {[%clk 0:00:06.3]} 38. Re1
{[%clk 0:00:17.9]} 38... Nxc4 {[%clk 0:00:05.8]} 39. Rxa4 {[%clk 0:00:18.4]}
39... Nxd4 {[%clk 0:00:05.5]} 40. cxd4 {[%clk 0:00:17.7]} 40... Nd6 {[%clk
0:00:05.5]} 41. Ra6 {[%clk 0:00:17.5]} 41... Nf5+ {[%clk 0:00:05.4]} 42. Kh2
{[%clk 0:00:18]} 42... Nxd4 {[%clk 0:00:05.4]} 43. Rd1 {[%clk 0:00:18.6]} 43...
Nf5 {[%clk 0:00:05.2]} 44. Rd7 {[%clk 0:00:17.2]} 44... Rd8 {[%clk 0:00:04.4]}
45. Rc7 {[%clk 0:00:17.2]} 45... Rbc8 {[%clk 0:00:04.4]} 46. Rb7 {[%clk
0:00:17.4]} 46... Rb8 {[%clk 0:00:04.6]} 47. Rc7 {[%clk 0:00:16.6]} 47... Rbc8
{[%clk 0:00:04.8]} 48. Rb7 {[%clk 0:00:16.7]} 48... Kf8 {[%clk 0:00:04.3]} 49.
Be2 {[%clk 0:00:15.7]} 49... Nd6 {[%clk 0:00:03.8]} 50. Rba7 {[%clk 0:00:14.9]}
50... Kg7 {[%clk 0:00:03.7]} 51. Bh5 {[%clk 0:00:14.5]} 51... Kf6 {[%clk
0:00:04]} 52. Bf3 {[%clk 0:00:13.2]} 52... Rb8 {[%clk 0:00:03.1]} 53. Ra4 {[%clk
0:00:13.2]} 53... Rf8 {[%clk 0:00:02.6]} 54. h4 {[%clk 0:00:13.4]} 54... Nf5
{[%clk 0:00:02.4]} 55. h5 {[%clk 0:00:12.4]} 55... Kg7 {[%clk 0:00:02.5]} 56.
Be4 {[%clk 0:00:12]} 1-0

[Event "*** Titled Tuesday Blitz"]
[Site "Chess.com"]
[Date "2020.04.07"]
[Round "9"]
[White "hermionegrangermagic"]
[Black "Korchmar_Vasiliy"]
[Result "1-0"]
[WhiteElo "2498"]
[BlackElo "2608"]
[TimeControl "180+1"]
[EndTime "14:48:05 PDT"]
[Termination "hermionegrangermagic won on time"]

1. e4 {[%clk 0:03:00.9]} 1... c5 {[%clk 0:03:00]} 2. Nf3 {[%clk 0:03:00.4]} 2...
d6 {[%clk 0:03:00.3]} 3. d4 {[%clk 0:03:00.2]} 3... cxd4 {[%clk 0:03:01.2]} 4.
Nxd4 {[%clk 0:03:00.8]} 4... Nf6 {[%clk 0:03:01.8]} 5. Nc3 {[%clk 0:03:01.3]}
5... Nc6 {[%clk 0:03:02.3]} 6. Be2 {[%clk 0:02:57]} 6... e5 {[%clk 0:03:02.4]}
7. Nf3 {[%clk 0:02:57.1]} 7... h6 {[%clk 0:03:02.2]} 8. O-O {[%clk 0:02:56.9]}
8... Be7 {[%clk 0:03:02.9]} 9. h3 {[%clk 0:02:56.7]} 9... O-O {[%clk 0:03:03.4]}
10. Be3 {[%clk 0:02:56.3]} 10... Be6 {[%clk 0:03:03.9]} 11. Nd2 {[%clk
0:02:52.1]} 11... Rc8 {[%clk 0:03:03.2]} 12. Bc4 {[%clk 0:02:51.6]} 12... a6
{[%clk 0:02:53.3]} 13. Bb3 {[%clk 0:02:49.9]} 13... b5 {[%clk 0:02:49.5]} 14. a4
{[%clk 0:02:48.2]} 14... Bxb3 {[%clk 0:02:34]} 15. cxb3 {[%clk 0:02:49.1]} 15...
b4 {[%clk 0:02:31.4]} 16. Nd5 {[%clk 0:02:46.4]} 16... Nxd5 {[%clk 0:02:31.1]}
17. exd5 {[%clk 0:02:47.3]} 17... Na5 {[%clk 0:02:28.4]} 18. Rc1 {[%clk
0:02:43.9]} 18... Rxc1 {[%clk 0:02:19.7]} 19. Qxc1 {[%clk 0:02:44.8]} 19... Qa8
{[%clk 0:02:20.1]} 20. Bb6 {[%clk 0:02:41.3]} 20... Qxd5 {[%clk 0:02:18.9]} 21.
Bxa5 {[%clk 0:02:36.8]} 21... Qxa5 {[%clk 0:02:18.6]} 22. Qc6 {[%clk 0:02:36.3]}
22... d5 {[%clk 0:01:47.5]} 23. Nf3 {[%clk 0:02:32]} 23... Bf6 {[%clk
0:01:41.8]} 24. Rc1 {[%clk 0:02:30.8]} 24... e4 {[%clk 0:01:38.1]} 25. Rc5
{[%clk 0:02:26.5]} 25... Qd8 {[%clk 0:01:38.2]} 26. Rxd5 {[%clk 0:02:25.3]}
26... Qc8 {[%clk 0:01:32]} 27. Qxc8 {[%clk 0:02:17.3]} 27... Rxc8 {[%clk
0:01:32.9]} 28. Nd2 {[%clk 0:02:16.4]} 28... e3 {[%clk 0:01:07.8]} 29. fxe3
{[%clk 0:02:12.5]} 29... Rc2 {[%clk 0:01:07.1]} 30. Nc4 {[%clk 0:02:09.5]} 30...
Bxb2 {[%clk 0:01:06.6]} 31. Ra5 {[%clk 0:02:05.6]} 31... Bf6 {[%clk 0:00:43.3]}
32. Rxa6 {[%clk 0:02:03.1]} 32... Rc3 {[%clk 0:00:41.8]} 33. Nd2 {[%clk
0:01:50]} 33... Rxe3 {[%clk 0:00:39.9]} 34. Rd6 {[%clk 0:01:44]} 34... Bc3
{[%clk 0:00:17]} 35. Nc4 {[%clk 0:01:40.8]} 35... Re1+ {[%clk 0:00:16.3]} 36.
Kf2 {[%clk 0:01:34.6]} 36... Rb1 {[%clk 0:00:16.4]} 37. a5 {[%clk 0:01:34.8]}
37... Ra1 {[%clk 0:00:09.4]} 38. a6 {[%clk 0:01:31.9]} 38... Kh7 {[%clk
0:00:09.4]} 39. Kf3 {[%clk 0:01:28.1]} 39... Ra2 {[%clk 0:00:06.3]} 40. g3
{[%clk 0:01:25.7]} 40... f6 {[%clk 0:00:06.5]} 41. h4 {[%clk 0:01:22.2]} 41...
Kg6 {[%clk 0:00:06.8]} 42. Ke4 {[%clk 0:01:18.3]} 42... h5 {[%clk 0:00:06.8]}
43. Kd5 {[%clk 0:01:12.2]} 43... Be1 {[%clk 0:00:06.8]} 44. Kc5 {[%clk
0:01:02.7]} 44... Bxg3 {[%clk 0:00:05.6]} 45. Rc6 {[%clk 0:01:00.5]} 45... Bxh4
{[%clk 0:00:05.3]} 46. Kxb4 {[%clk 0:00:55.9]} 46... Be1+ {[%clk 0:00:05.5]} 47.
Kb5 {[%clk 0:00:47.7]} 47... h4 {[%clk 0:00:06.4]} 48. Ne5+ {[%clk 0:00:39.7]}
48... Kh7 {[%clk 0:00:05.4]} 49. Nf3 {[%clk 0:00:38.3]} 49... Bf2 {[%clk
0:00:04.4]} 50. Rc4 {[%clk 0:00:32.8]} 50... g5 {[%clk 0:00:03.5]} 51. Rc6
{[%clk 0:00:23.1]} 51... Kg6 {[%clk 0:00:03.6]} 52. Ne5+ {[%clk 0:00:23.1]}
52... Kf5 {[%clk 0:00:03.4]} 53. Nd7 {[%clk 0:00:23.2]} 53... Bd4 {[%clk
0:00:02.2]} 54. Rc4 {[%clk 0:00:21.1]} 54... Be5 {[%clk 0:00:02.3]} 55. Ra4
{[%clk 0:00:18.8]} 55... Rxa4 {[%clk 0:00:02.4]} 56. bxa4 {[%clk 0:00:17.9]}
56... Bd4 {[%clk 0:00:02.3]} 57. Nb6 {[%clk 0:00:18.1]} 57... Bxb6 {[%clk
0:00:01.7]} 58. Kxb6 {[%clk 0:00:18.2]} 58... h3 {[%clk 0:00:02.6]} 59. a7
{[%clk 0:00:18.2]} 1-0

[Event "*** Titled Tuesday Blitz"]
[Site "Chess.com"]
[Date "2020.04.07"]
[Round "9"]
[White "olksuna"]
[Black "michechess89"]
[Result "0-1"]
[WhiteElo "2596"]
[BlackElo "2456"]
[TimeControl "180+1"]
[EndTime "14:48:11 PDT"]
[Termination "michechess89 won on time"]

1. e4 {[%clk 0:03:00.9]} 1... e5 {[%clk 0:02:57.2]} 2. Nf3 {[%clk 0:03:00.6]}
2... Nf6 {[%clk 0:02:56.1]} 3. Nc3 {[%clk 0:02:57.2]} 3... Bb4 {[%clk 0:02:55]}
4. Nxe5 {[%clk 0:02:56]} 4... O-O {[%clk 0:02:52]} 5. Nd3 {[%clk 0:02:54.7]}
5... Bxc3 {[%clk 0:02:50.3]} 6. dxc3 {[%clk 0:02:55.6]} 6... Nxe4 {[%clk
0:02:49.6]} 7. Be3 {[%clk 0:02:49.6]} 7... d6 {[%clk 0:02:42.2]} 8. Qf3 {[%clk
0:02:43.7]} 8... Ng5 {[%clk 0:02:21.8]} 9. Qh5 {[%clk 0:02:38.5]} 9... Ne6
{[%clk 0:02:19.3]} 10. O-O-O {[%clk 0:02:34.7]} 10... Nc6 {[%clk 0:02:17.2]} 11.
h4 {[%clk 0:02:34.4]} 11... Bd7 {[%clk 0:02:10.9]} 12. Qf3 {[%clk 0:02:31.3]}
12... Qf6 {[%clk 0:02:01.8]} 13. Qxf6 {[%clk 0:02:24.3]} 13... gxf6 {[%clk
0:02:02.7]} 14. Bh6 {[%clk 0:02:23.7]} 14... Rfe8 {[%clk 0:02:01.6]} 15. g3
{[%clk 0:02:22.1]} 15... Ne5 {[%clk 0:01:59.1]} 16. Bh3 {[%clk 0:02:16.7]} 16...
Bc6 {[%clk 0:01:49.5]} 17. Rhe1 {[%clk 0:02:06.3]} 17... Nc5 {[%clk 0:01:39.4]}
18. Nxc5 {[%clk 0:01:58.8]} 18... dxc5 {[%clk 0:01:40.3]} 19. f4 {[%clk
0:01:57.2]} 19... Nc4 {[%clk 0:01:25.2]} 20. Rxe8+ {[%clk 0:01:47.4]} 20... Rxe8
{[%clk 0:01:23.8]} 21. b3 {[%clk 0:01:48.3]} 21... Nd6 {[%clk 0:01:20.9]} 22.
Rd3 {[%clk 0:01:28.6]} 22... c4 {[%clk 0:01:08.8]} 23. Rd4 {[%clk 0:01:04.1]}
23... b5 {[%clk 0:00:55.8]} 24. Kb2 {[%clk 0:00:49.2]} 24... Re3 {[%clk
0:00:43.1]} 25. a4 {[%clk 0:00:34.3]} 25... Rxg3 {[%clk 0:00:34.2]} 26. axb5
{[%clk 0:00:25.3]} 26... Bxb5 {[%clk 0:00:31.4]} 27. Bf5 {[%clk 0:00:17.3]}
27... Re3 {[%clk 0:00:19.4]} 28. Rd5 {[%clk 0:00:13.8]} 28... cxb3 {[%clk
0:00:10]} 29. cxb3 {[%clk 0:00:11.9]} 29... Re2+ {[%clk 0:00:10.5]} 30. Ka3
{[%clk 0:00:11.5]} 30... a6 {[%clk 0:00:09.7]} 31. Rc5 {[%clk 0:00:11.3]} 31...
c6 {[%clk 0:00:09.2]} 32. Bd7 {[%clk 0:00:08.7]} 32... Rh2 {[%clk 0:00:06.7]}
33. f5 {[%clk 0:00:04.7]} 33... Rxh4 {[%clk 0:00:05.8]} 34. Be3 {[%clk
0:00:03.9]} 34... Rh3 {[%clk 0:00:06]} 35. Bd4 {[%clk 0:00:03.8]} 35... Ne4
{[%clk 0:00:06.5]} 36. Rxc6 {[%clk 0:00:01.9]} 36... Bxc6 {[%clk 0:00:06]} 37.
Bxc6 {[%clk 0:00:02.8]} 37... Nd6 {[%clk 0:00:06.5]} 38. Bxf6 {[%clk 0:00:03.7]}
38... Rh5 {[%clk 0:00:06.1]} 39. Bb7 {[%clk 0:00:04.6]} 39... Rxf5 {[%clk
0:00:06.9]} 40. Bd4 {[%clk 0:00:04.6]} 40... Ra5+ {[%clk 0:00:07.7]} 41. Kb2
{[%clk 0:00:03.8]} 41... Rb5 {[%clk 0:00:08.6]} 42. Bxa6 {[%clk 0:00:03.6]}
42... Rg5 {[%clk 0:00:09.4]} 43. b4 {[%clk 0:00:03.3]} 43... h5 {[%clk
0:00:09.3]} 44. Kb3 {[%clk 0:00:03.7]} 44... h4 {[%clk 0:00:08.9]} 45. Bc5
{[%clk 0:00:03.7]} 45... Ne4 {[%clk 0:00:08.5]} 46. Bb7 {[%clk 0:00:01.5]} 46...
Nxc5+ {[%clk 0:00:06.6]} 47. bxc5 {[%clk 0:00:01.7]} 47... Rxc5 {[%clk
0:00:07.5]} 48. Kb4 {[%clk 0:00:02.2]} 48... Rc7 {[%clk 0:00:07.1]} 49. Bh1
{[%clk 0:00:02.1]} 49... Kg7 {[%clk 0:00:08]} 50. c4 {[%clk 0:00:02.4]} 50...
Kf6 {[%clk 0:00:08.4]} 51. c5 {[%clk 0:00:03]} 51... Ke5 {[%clk 0:00:09.3]} 52.
Kb5 {[%clk 0:00:03.5]} 52... Rc8 {[%clk 0:00:07.4]} 53. Kb6 {[%clk 0:00:02.3]}
53... Rb8+ {[%clk 0:00:07.6]} 54. Kc7 {[%clk 0:00:01.2]} 54... Rb1 {[%clk
0:00:08.5]} 55. c6 {[%clk 0:00:02.1]} 55... Rxh1 {[%clk 0:00:07.8]} 0-1